fUST/lending_fUST_20250626
["ID","MTS","AMOUNT","RATE_DAILY","PERIOD"]
[367782012,1750930247661,-460.0,0.000186,2]
[367782014,1750930247672,-460.0,0.000186,2]
[367782016,1750930247681,-460.0,0.000186,2]
[367782018,1750930247691,-1968.24,0.000186,2]
[367782021,1750930247700,-849.86,0.000186,2]
[367782023,1750930247709,-585.75,0.000186,2]
[367782025,1750930247718,-370.41603949,0.000186,2]
[367782027,1750930247728,-657.24,0.000186,2]
[367782029,1750930247737,-573.2,0.000186,2]
[367782031,1750930247747,-460.0,0.000186,2]
[367782033,1750930247756,-2371.99531623,0.00018624,2]
[367782035,1750930247765,-460.0,0.0001863,2]
[367782037,1750930247775,-1039.39,0.0001863,2]
[367782039,1750930247784,-460.0,0.0001863,2]
[367782041,1750930247793,-485.58,0.0001863,2]
[367782043,1750930247803,-554.51,0.0001863,2]
[367782045,1750930247812,-1476.85,0.0001863,2]
[367782047,1750930247822,-1801.72,0.0001863,2]
[367782049,1750930247831,-1419.91,0.0001863,2]
[367782051,1750930247840,-460.0,0.0001863,2]
[367782053,1750930247850,-460.0,0.0001863,2]
[367782054,1750930247859,-954.97,0.0001863,2]
[367782056,1750930247868,-597.64,0.0001863,2]
[367782058,1750930247878,-460.0,0.0001863,2]
[367782060,1750930247887,-673.75,0.0001863,2]
[367782062,1750930247896,-460.0,0.0001863,2]
[367782064,1750930247905,-604.88,0.0001863,2]
[367782067,1750930247915,-460.0,0.0001863,2]
[367782069,1750930247925,-999.06,0.0001863,2]
[367782071,1750930247934,-460.0,0.0001863,2]
[367782073,1750930247943,-500.0,0.00018666,2]
[367782075,1750930247952,-504.18410988,0.00018669,2]
[367782077,1750930247962,-460.0,0.00018701,2]
[367782078,1750930247970,-650.8,0.00018701,2]
[367782081,1750930247980,-460.0,0.00018701,2]
[367782083,1750930247990,-891.59,0.00018701,2]
[367782084,1750930247999,-2092.2,0.00018701,2]
[367782085,1750930248008,-619.42,0.00018701,2]
[367782086,1750930248018,-460.0,0.00018702,2]
[367782087,1750930248027,-460.0,0.00018702,2]
[367782088,1750930248036,-460.0,0.00018702,2]
[367782089,1750930248045,-540.0,0.00018702,2]
[367782090,1750930248055,-287.97949559,0.00018702,2]
[367782091,1750930248064,-471.55,0.00018702,2]
[367782092,1750930248077,-500.0,0.00018748,2]
[367782093,1750930248087,-1000.0,0.00018848,2]
[367782094,1750930248096,-1000.0,0.00018848,2]
[367782095,1750930248106,-245.6856227,0.00018848,2]
[367782096,1750930248115,-2371.99531623,0.00018866,2]
[367782097,1750930248124,-460.0,0.00018874,2]
[367782098,1750930248134,-460.0,0.00018874,2]
[367782099,1750930248143,-460.0,0.00018874,2]
[367782100,1750930248152,-1968.24,0.00018874,2]
[367782101,1750930248161,-849.86,0.00018874,2]
[367782102,1750930248170,-585.75,0.00018874,2]
[367782103,1750930248180,-657.24,0.00018874,2]
[367782104,1750930248189,-573.2,0.00018874,2]
[367782105,1750930248199,-590.45619756,0.00018874,2]
[367782107,1750930248208,-151.0,0.00018886,2]
[367782109,1750930248218,-4020.29279542,0.00018886,2]
[367782111,1750930248227,-1076.51811168,0.000189,2]
[367782113,1750930248236,-460.0,0.00018904,2]
[367782115,1750930248245,-1039.39,0.00018904,2]
[367782117,1750930248254,-460.0,0.00018904,2]
[367782119,1750930248263,-485.58,0.00018904,2]
[367782121,1750930248273,-554.51,0.00018904,2]
[367782123,1750930248282,-1476.85,0.00018904,2]
[367782125,1750930248292,-1801.72,0.00018904,2]
[367782127,1750930248301,-1419.91,0.00018904,2]
[367782129,1750930248310,-514.69134087,0.00018904,2]
[367782131,1750930248320,-460.0,0.00018904,2]
[367782133,1750930248329,-954.97,0.00018904,2]
[367782135,1750930248339,-597.64,0.00018904,2]
[367782137,1750930248348,-460.0,0.00018904,2]
[367782139,1750930248357,-673.75,0.00018904,2]
[367782141,1750930248367,-460.0,0.00018904,2]
[367782143,1750930248377,-604.88,0.00018904,2]
[367782145,1750930248386,-460.0,0.00018904,2]
[367782147,1750930248395,-999.06,0.00018904,2]
[367782149,1750930248405,-460.0,0.00018904,2]
[367782151,1750930248414,-500.0,0.00018911,2]
[367782153,1750930248423,-500.41164183,0.00018911,2]
[367782155,1750930248432,-460.0,0.00018975,2]
[367782157,1750930248442,-650.8,0.00018975,2]
[367782159,1750930248451,-396.75,0.00018975,2]
[367782161,1750930248461,-891.59,0.00018975,2]
[367782163,1750930248471,-2092.2,0.00018975,2]
[367782165,1750930248480,-619.42,0.00018975,2]
[367782167,1750930248489,-460.0,0.00018976,2]
[367782169,1750930248499,-460.0,0.00018976,2]
[367782171,1750930248512,-460.0,0.00018976,2]
[367782173,1750930248521,-471.55,0.00018976,2]
[367782175,1750930248531,-151.0,0.00018986,2]
[367782177,1750930248541,-151.0,0.00018986,2]
[367782179,1750930248551,-151.0,0.00018986,2]
[367782181,1750930248561,-250.206453,0.00018986,2]
[367782183,1750930248570,-151.577273,0.00018986,2]
[367782185,1750930248580,-151.0,0.00018986,2]
[367782187,1750930248591,-176.214753,0.00018986,2]
[367782189,1750930248600,-176.214753,0.00018986,2]
[367782190,1750930248610,-151.0,0.00018986,2]
[367782193,1750930248620,-388.0,0.00018986,2]
[367782204,1750930248629,-151.27597907,0.00018986,2]
[367782207,1750930248742,-207.4,0.00018986,2]
[367782209,1750930248751,-500.0,0.00018986,2]
[367782211,1750930248761,-500.0,0.00018986,2]
[367782213,1750930248770,-500.0,0.00018986,2]
[367782215,1750930248780,-500.0,0.00018986,2]
[367782217,1750930248789,-5000.0,0.00018986,2]
[367782219,1750930248799,-500.0,0.00018986,2]
[367782221,1750930248808,-500.0,0.00018986,2]
[367782223,1750930248818,-500.0,0.00018986,2]
[367782225,1750930248828,-151.0,0.00018986,2]
[367782227,1750930248837,-500.0,0.00018986,2]
[367782229,1750930248847,-500.0,0.00018986,2]
[367782231,1750930248857,-151.0,0.00018986,2]
[367782233,1750930248866,-500.0,0.00018986,2]
[367782235,1750930248875,-500.0,0.00018986,2]
[367782237,1750930248884,-151.0,0.00018986,2]
[367782239,1750930248893,-500.0,0.00018986,2]
[367782241,1750930248903,-500.0,0.00018986,2]
[367782243,1750930248912,-151.0,0.00018986,2]
[367782245,1750930248921,-500.0,0.00018986,2]
[367782247,1750930248931,-500.0,0.00018986,2]
[367782249,1750930248940,-151.0,0.00018986,2]
[367782251,1750930248950,-151.0,0.00018986,2]
[367782253,1750930248959,-500.0,0.00018986,2]
[367782255,1750930248968,-2438.02774712,0.00018986,2]
[367782257,1750930248978,-151.0,0.00018986,2]
[367782259,1750930248987,-151.0,0.00018986,2]
[367782261,1750930248996,-151.0,0.00018986,2]
[367782263,1750930249006,-500.0,0.00018986,2]
[367782265,1750930249015,-151.0,0.00018986,2]
[367782267,1750930249024,-151.0,0.00018986,2]
[367782269,1750930249033,-500.0,0.00018986,2]
[367782271,1750930249042,-151.0,0.00018986,2]
[367782273,1750930249051,-151.0,0.00018986,2]
[367782275,1750930249061,-151.0,0.00018986,2]
[367782277,1750930249070,-500.0,0.00018986,2]
[367782279,1750930249080,-151.0,0.00018986,2]
[367782281,1750930249090,-500.0,0.00018986,2]
[367782283,1750930249101,-151.0,0.00018986,2]
[367782285,1750930249110,-500.0,0.00018986,2]
[367782287,1750930249120,-273.74990888,0.00018986,2]
[367782289,1750930249129,-500.0,0.00018986,2]
[367782291,1750930249139,-151.0,0.00018986,2]
[367782293,1750930249148,-500.0,0.00018986,2]
[367782295,1750930249158,-151.0,0.00018986,2]
[367782297,1750930249167,-500.0,0.00018986,2]
[367782299,1750930249176,-151.0,0.00018986,2]
[367782301,1750930249186,-151.0,0.00018986,2]
[367782303,1750930249195,-500.0,0.00018986,2]
[367782305,1750930249205,-151.0,0.00018986,2]
[367782307,1750930249214,-500.0,0.00018986,2]
[367782309,1750930249224,-151.0,0.00018986,2]
[367782311,1750930249233,-500.0,0.00018986,2]
[367782313,1750930249242,-500.0,0.00018986,2]
[367782315,1750930249251,-151.0,0.00018986,2]
[367782317,1750930249261,-151.0,0.00018986,2]
[367782319,1750930249270,-500.0,0.00018986,2]
[367782321,1750930249280,-151.0,0.00018986,2]
[367782323,1750930249289,-151.0,0.00018986,2]
[367782325,1750930249298,-500.0,0.00018986,2]
[367782327,1750930249307,-500.0,0.00018986,2]
[367782329,1750930249317,-151.0,0.00018986,2]
[367782331,1750930249326,-500.0,0.00018986,2]
[367782333,1750930249336,-500.0,0.00018986,2]
[367782335,1750930249345,-244.50989766,0.00018986,2]
[367782337,1750930249354,-151.0,0.00018986,2]
[367782339,1750930249363,-500.0,0.00018986,2]
[367782341,1750930249373,-500.0,0.00018986,2]
[367782343,1750930249382,-219.65880211,0.00018986,2]
[367782345,1750930249392,-500.0,0.00018986,2]
[367782347,1750930249401,-500.0,0.00018986,2]
[367782349,1750930249412,-154.30026337,0.00018986,2]
[367782351,1750930249421,-500.0,0.00018986,2]
[367782353,1750930249431,-500.0,0.00018986,2]
[367782355,1750930249440,-25000.0,0.00018986,2]
[367782357,1750930249449,-500.0,0.00018986,2]
[367782359,1750930249458,-500.0,0.00018986,2]
[367782362,1750930249469,-23656.00863629,0.00018986,2]
[367782364,1750930249479,-500.0,0.00018986,2]
[367782365,1750930249488,-500.0,0.00018986,2]
[367782368,1750930249498,-500.0,0.00018986,2]
[367782370,1750930249512,-500.0,0.00018986,2]
[367782372,1750930249522,-500.0,0.00018986,2]
[367782374,1750930249531,-193.91835657,0.00018986,2]
[367782376,1750930249540,-735.08077446,0.00019013,2]
[367782378,1750930249550,-1000.0,0.00019024,2]
[367782380,1750930249559,-1011.32697788,0.00019024,2]
[367782382,1750930249569,-627.19226716,0.00019035,2]
[367782384,1750930249578,-1500.0,0.00019035,2]
[367782386,1750930249589,-1500.0,0.00019035,2]
[367782388,1750930249600,-402.356,0.00019041,2]
[367782389,1750930249610,-417.243172,0.00019096,2]
[367782391,1750930249619,-2371.99531623,0.00019107,2]
[367782393,1750930249628,-545.64911795,0.00019148,2]
[367782396,1750930249638,-460.0,0.00019148,2]
[367782397,1750930249647,-460.0,0.00019148,2]
[367782399,1750930249656,-1968.24,0.00019148,2]
[367782401,1750930249664,-849.86,0.00019148,2]
[367782403,1750930249675,-585.75,0.00019148,2]
[367782405,1750930249683,-657.24,0.00019148,2]
[367782407,1750930249693,-573.2,0.00019148,2]
[367782409,1750930249703,-432.68116936,0.00019151,2]
[367782411,1750930249713,-460.0,0.00019178,2]
[367782413,1750930249722,-1039.39,0.00019178,2]
[367782416,1750930249732,-460.0,0.00019178,2]
[367782417,1750930249741,-485.58,0.00019178,2]
[367782420,1750930249752,-554.51,0.00019178,2]
[367782422,1750930249761,-151.0,0.00019178,2]
[367782424,1750930249770,-1476.85,0.00019178,2]
[367782425,1750930249779,-1801.72,0.00019178,2]
[367782428,1750930249789,-1419.91,0.00019178,2]
[367782430,1750930249798,-460.0,0.00019178,2]
[367782432,1750930249808,-954.97,0.00019178,2]
[367782434,1750930249817,-597.64,0.00019178,2]
[367782436,1750930249826,-460.0,0.00019178,2]
[367782437,1750930249835,-151.0,0.00019178,2]
[367782440,1750930249845,-151.0,0.00019178,2]
[367782441,1750930249854,-673.75,0.00019178,2]
[367782443,1750930249863,-460.0,0.00019178,2]
[367782445,1750930249872,-604.88,0.00019178,2]
[367782448,1750930249882,-460.0,0.00019178,2]
[367782450,1750930249892,-999.06,0.00019178,2]
[367782451,1750930249902,-460.0,0.00019178,2]
[367782454,1750930249912,-29022.9130628,0.00019178,2]
[367782455,1750930249921,-350.106642,0.00019178,2]
[367782457,1750930249931,-500.0,0.00019205,2]
[367782459,1750930249940,-1875.0,0.00019205,2]
[367782461,1750930249949,-500.0,0.00019205,2]
[367782463,1750930249958,-151.0,0.00019205,2]
[367782465,1750930249967,-500.0,0.00019205,2]
[367782467,1750930249976,-206.06462621,0.00019205,2]
[367782469,1750930249985,-151.0,0.00019205,2]
[367782471,1750930249994,-151.0,0.00019205,2]
[367782473,1750930250004,-500.0,0.00019205,2]
[367782475,1750930250013,-500.0,0.00019205,2]
[367782477,1750930250022,-448.69037263,0.00019206,2]
[367782479,1750930250031,-500.0,0.00019232,2]
[367782481,1750930250041,-1875.0,0.00019232,2]
[367782483,1750930250050,-500.0,0.00019232,2]
[367782485,1750930250060,-151.0,0.00019232,2]
[367782487,1750930250070,-557.29819206,0.00019232,2]
[367782489,1750930250079,-245.0,0.00019232,2]
[367782491,1750930250088,-500.0,0.00019232,2]
[367782493,1750930250098,-500.0,0.00019232,2]
[367782495,1750930250107,-460.0,0.00019249,2]
[367782497,1750930250116,-151.0,0.00019249,2]
[367782499,1750930250126,-650.8,0.00019249,2]
[367782501,1750930250134,-151.385928,0.00019249,2]
[367782503,1750930250144,-891.59,0.00019249,2]
[367782505,1750930250153,-2092.2,0.00019249,2]
[367782507,1750930250162,-619.42,0.00019249,2]
[367782509,1750930250171,-460.0,0.0001925,2]
[367782511,1750930250180,-460.0,0.0001925,2]
[367782513,1750930250189,-460.0,0.0001925,2]
[367782515,1750930250198,-471.55,0.0001925,2]
[367782517,1750930250208,-500.0,0.0001926,2]
[367782519,1750930250217,-1875.0,0.0001926,2]
[367782521,1750930250227,-500.0,0.0001926,2]
[367782523,1750930250236,-500.0,0.0001926,2]
[367782525,1750930250245,-598.22532481,0.0001926,2]
[367782527,1750930250254,-465.29191642,0.00019261,2]
[367782529,1750930250264,-500.0,0.00019287,2]
[367782532,1750930250274,-1875.0,0.00019287,2]
[367782533,1750930250283,-500.0,0.00019287,2]
[367782536,1750930250292,-500.0,0.00019287,2]
[367782538,1750930250302,-500.0,0.00019315,2]
[367782540,1750930250311,-1875.0,0.00019315,2]
[367782542,1750930250320,-362.92671865,0.00019315,2]
[367782543,1750930250329,-500.0,0.00019315,2]
[367782545,1750930250338,-151.0,0.00019315,2]
[367782547,1750930250348,-482.50771733,0.00019316,2]
[367782549,1750930250357,-556.02021361,0.00019342,2]
[367782551,1750930250366,-1875.0,0.00019342,2]
[367782554,1750930250376,-2371.99531623,0.00019348,2]
[367782555,1750930250386,-1875.0,0.00019369,2]
[367782557,1750930250395,-500.36050287,0.00019371,2]
[367782559,1750930250404,-500.0,0.00019396,2]
[367782562,1750930250413,-502.78026123,0.00019396,2]
[367782564,1750930250423,-1875.0,0.00019397,2]
[367782566,1750930250432,-460.0,0.00019422,2]
[367782567,1750930250442,-460.0,0.00019422,2]
[367782570,1750930250452,-1968.24,0.00019422,2]
[367782571,1750930250461,-849.86,0.00019422,2]
[367782573,1750930250470,-585.75,0.00019422,2]
[367782575,1750930250479,-657.24,0.00019422,2]
[367782577,1750930250489,-573.2,0.00019422,2]
[367782579,1750930250497,-1875.0,0.00019424,2]
[367782581,1750930250508,-966.0,0.00019438,2]
[367782583,1750930250519,-1875.0,0.00019452,2]
[367782585,1750930250528,-460.0,0.00019452,2]
[367782587,1750930250537,-1039.39,0.00019452,2]
[367782589,1750930250546,-362.3,0.00019452,2]
[367782591,1750930250556,-485.58,0.00019452,2]
[367782593,1750930250565,-554.51,0.00019452,2]
[367782595,1750930250574,-1476.85,0.00019452,2]
[367782597,1750930250583,-1801.72,0.00019452,2]
[367782599,1750930250593,-1419.91,0.00019452,2]
[367782601,1750930250602,-460.0,0.00019452,2]
[367782603,1750930250611,-954.97,0.00019452,2]
[367782605,1750930250620,-151.0,0.00019452,2]
[367782607,1750930250629,-597.64,0.00019452,2]
[367782609,1750930250638,-460.0,0.00019452,2]
[367782611,1750930250647,-151.0,0.00019452,2]
[367782613,1750930250656,-233.259426,0.00019452,2]
[367782615,1750930250665,-673.75,0.00019452,2]
[367782617,1750930250675,-460.0,0.00019452,2]
[367782619,1750930250686,-604.88,0.00019452,2]
[367782621,1750930250695,-176.214753,0.00019452,2]
[367782623,1750930250705,-376.93,0.00019452,2]
[367782625,1750930250715,-176.214753,0.00019452,2]
[367782627,1750930250724,-999.06,0.00019452,2]
[367782629,1750930250733,-460.0,0.00019452,2]
[367782631,1750930250743,-151.0,0.00019452,2]
[367782633,1750930250752,-323.57981548,0.00019459,2]
[367782635,1750930250761,-1875.0,0.00019479,2]
[367782637,1750930250771,-1001.263524,0.000195,2]
[367782639,1750930250780,-1875.0,0.00019506,2]
[367782641,1750930250789,-460.0,0.00019523,2]
[367782643,1750930250799,-650.8,0.00019523,2]
[367782645,1750930250808,-891.59,0.00019523,2]
[367782647,1750930250817,-2092.2,0.00019523,2]
[367782649,1750930250826,-619.42,0.00019523,2]
[367782651,1750930250836,-460.0,0.00019524,2]
[367782653,1750930250845,-460.0,0.00019524,2]
[367782655,1750930250854,-460.0,0.00019524,2]
[367782657,1750930250863,-471.55,0.00019524,2]
[367782659,1750930250872,-6141.80702,0.00019533,2]
[367782672,1750930250979,-1875.0,0.00019534,2]
[367782674,1750930250989,-151.0,0.00019534,2]
[367782676,1750930250998,-151.0,0.00019534,2]
[367782678,1750930251008,-5000.0,0.00019534,2]
[367782680,1750930251017,-25000.0,0.00019534,2]
[367782682,1750930251026,-500.0,0.00019539,2]
[367782684,1750930251035,-971.63583951,0.00019539,2]
[367782686,1750930251045,-599.48179138,0.00019539,2]
[367782688,1750930251054,-971.63583951,0.00019539,2]
[367782690,1750930251063,-971.63583951,0.00019539,2]
[367782692,1750930251071,-221.50464324,0.00019539,2]
[367782694,1750930251082,-971.63583951,0.00019539,2]
[367782696,1750930251092,-971.63583951,0.00019539,2]
[367782698,1750930251101,-971.63583951,0.00019539,2]
[367782700,1750930251111,-500.0,0.00019539,2]
[367782703,1750930251120,-971.63583951,0.00019539,2]
[367782705,1750930251130,-500.0,0.00019539,2]
[367782707,1750930251139,-971.63583951,0.00019539,2]
[367782709,1750930251148,-971.63583951,0.00019539,2]
[367782710,1750930251158,-971.63583951,0.00019539,2]
[367782713,1750930251169,-971.63583951,0.00019539,2]
[367782715,1750930251178,-971.63583951,0.00019539,2]
[367782717,1750930251188,-971.63583951,0.00019539,2]
[367782719,1750930251197,-971.63583951,0.00019539,2]
[367782721,1750930251206,-971.63583951,0.00019539,2]
[367782723,1750930251215,-302.574,0.00019554,2]
[367782725,1750930251224,-1875.0,0.00019561,2]
[367782727,1750930251234,-1500.0,0.00019572,2]
[367782729,1750930251243,-2000.0,0.00019583,2]
[367782731,1750930251253,-1113.77210429,0.00019583,2]
[367782733,1750930251262,-1875.0,0.00019589,2]
[367782735,1750930251271,-2371.99531623,0.0001959,2]
[367782737,1750930251281,-1875.0,0.00019616,2]
[367782739,1750930251290,-1875.0,0.00019643,2]
[367782741,1750930251299,-1875.0,0.00019671,2]
[367782743,1750930251308,-460.0,0.00019696,2]
[367782745,1750930251316,-460.0,0.00019696,2]
[367782747,1750930251327,-1968.24,0.00019696,2]
[367782749,1750930251339,-849.86,0.00019696,2]
[367782751,1750930251348,-585.75,0.00019696,2]
[367782753,1750930251357,-657.24,0.00019696,2]
[367782755,1750930251367,-573.2,0.00019696,2]
[367782757,1750930251376,-735.08077446,0.00019697,2]
[367782759,1750930251385,-1875.0,0.00019698,2]
[367782761,1750930251394,-1875.0,0.00019726,2]
[367782763,1750930251403,-529.47,0.00019726,2]
[367782764,1750930251412,-1039.39,0.00019726,2]
[367782765,1750930251422,-485.58,0.00019726,2]
[367782766,1750930251431,-554.51,0.00019726,2]
[367782767,1750930251440,-1476.85,0.00019726,2]
[367782768,1750930251450,-1801.72,0.00019726,2]
[367782769,1750930251459,-1419.91,0.00019726,2]
[367782770,1750930251468,-220.49,0.00019726,2]
[367782771,1750930251477,-954.97,0.00019726,2]
[367782772,1750930251487,-597.64,0.00019726,2]
[367782773,1750930251496,-460.0,0.00019726,2]
[367782774,1750930251507,-673.75,0.00019726,2]
[367782775,1750930251518,-460.0,0.00019726,2]
[367782776,1750930251527,-604.88,0.00019726,2]
[367782777,1750930251536,-999.06,0.00019726,2]
[367782778,1750930251545,-460.0,0.00019726,2]
[367782779,1750930251555,-1875.0,0.00019753,2]
[367782780,1750930251564,-1875.0,0.0001978,2]
[367782781,1750930251573,-460.0,0.00019797,2]
[367782782,1750930251583,-650.8,0.00019797,2]
[367782784,1750930251593,-891.59,0.00019797,2]
[367782786,1750930251602,-2092.2,0.00019797,2]
[367782788,1750930251611,-619.42,0.00019797,2]
[367782790,1750930251620,-460.0,0.00019798,2]
[367782792,1750930251629,-460.0,0.00019798,2]
[367782794,1750930251638,-460.0,0.00019798,2]
[367782796,1750930251647,-471.55,0.00019798,2]
[367782798,1750930251657,-160.0,0.000198,5]
[367782800,1750930251666,-160.0,0.000198,5]
[367782802,1750930251675,-160.0,0.000198,4]
[367782804,1750930251684,-160.0,0.000198,4]
[367782806,1750930251694,-160.0,0.000198,3]
[367782808,1750930251703,-160.0,0.000198,3]
[367782810,1750930251713,-163.0,0.000198,3]
[367782812,1750930251722,-163.0,0.000198,3]
[367782814,1750930251731,-163.0,0.000198,4]
[367782816,1750930251740,-166.16,0.000198,4]
[367782818,1750930251749,-1875.0,0.00019808,2]
[367782820,1750930251759,-184.0,0.00019811,2]
[367782822,1750930251769,-2371.99531623,0.00019831,2]
[367782824,1750930251779,-1875.10000001,0.00019835,2]
[367782826,1750930251788,-184.0,0.00019933,2]
[367782828,1750930251797,-151.0,0.00019954,2]
[367782830,1750930251806,-151.0,0.00019954,2]
[367782832,1750930251816,-151.0,0.00019954,2]
[367782834,1750930251825,-151.0,0.00019954,2]
[367782836,1750930251835,-151.0,0.00019954,2]
[367782838,1750930251845,-294.877351,0.00019954,2]
[367782840,1750930251855,-294.877351,0.00019954,2]
[367782842,1750930251864,-151.0,0.00019954,2]
[367782844,1750930251874,-460.0,0.0001997,2]
[367782846,1750930251883,-460.0,0.0001997,2]
[367782848,1750930251892,-1968.24,0.0001997,2]
[367782851,1750930251902,-849.86,0.0001997,2]
[367782853,1750930251911,-585.75,0.0001997,2]
[367782854,1750930251920,-657.24,0.0001997,2]
[367782857,1750930251930,-573.2,0.0001997,2]
[367782858,1750930251939,-217908.65968621,0.0002,2]
[367782860,1750930251948,-1000.0,0.0002,2]
[367782862,1750930251957,-1039.39,0.0002,2]
[367782864,1750930251966,-485.58,0.0002,2]
[367782866,1750930251976,-554.51,0.0002,2]
[367782868,1750930251986,-1476.85,0.0002,2]
[367782870,1750930251995,-1801.72,0.0002,2]
[367782872,1750930252004,-1419.91,0.0002,2]
[367782874,1750930252013,-954.97,0.0002,2]
[367782876,1750930252022,-597.64,0.0002,2]
[367782878,1750930252031,-460.0,0.0002,2]
[367782880,1750930252041,-673.75,0.0002,2]
[367782882,1750930252050,-460.0,0.0002,2]
[367782884,1750930252059,-604.88,0.0002,2]
[367782886,1750930252067,-285.68747196,0.0002,4]
[367782888,1750930252077,-999.06,0.0002,2]
[367782890,1750930252088,-333.37,0.0002,2]
[367782892,1750930252097,-460.0,0.00020071,2]
[367782894,1750930252106,-650.8,0.00020071,2]
[367782896,1750930252115,-891.59,0.00020071,2]
[367782898,1750930252125,-2092.2,0.00020071,2]
[367782900,1750930252133,-619.42,0.00020071,2]
[367782902,1750930252143,-460.0,0.00020072,2]
[367782904,1750930252152,-607.08547908,0.00020072,2]
[367782906,1750930252162,-460.0,0.00020072,2]
[367782908,1750930252171,-471.55,0.00020072,2]
[367782910,1750930252180,-2371.99531623,0.00020072,2]
[367782912,1750930252190,-151.0,0.00020073,2]
[367782914,1750930252199,-151.0,0.00020073,2]
[367782917,1750930252208,-252.11651,0.00020073,2]
[367782919,1750930252218,-300.60038005,0.00020078,2]
[367782921,1750930252226,-151.0,0.00020082,2]
[367782923,1750930252236,-5000.0,0.00020082,2]
[367782925,1750930252245,-25000.0,0.00020082,2]
[367782926,1750930252255,-1289.452244,0.0002009,4]
[367782928,1750930252264,-250.0,0.00020105,2]
[367782930,1750930252274,-159.2154015,0.0002011,2]
[367782933,1750930252285,-153.0,0.0002011,2]
[367782934,1750930252294,-153.0,0.0002011,2]
[367782936,1750930252303,-575.0264769,0.0002011,2]
[367782939,1750930252313,-177.4156324,0.0002011,2]
[367782941,1750930252323,-153.0,0.0002011,2]
[367782943,1750930252333,-575.0264769,0.0002011,2]
[367782945,1750930252342,-153.0,0.0002011,2]
[367782947,1750930252351,-575.0264769,0.0002011,2]
[367782949,1750930252360,-575.0264769,0.0002011,2]
[367782951,1750930252370,-153.0,0.0002011,2]
[367782953,1750930252379,-574.1049965,0.0002011,2]
[367782955,1750930252389,-153.0,0.0002011,2]
[367782957,1750930252398,-153.0,0.0002011,2]
[367782959,1750930252407,-153.0,0.0002011,2]
[367782961,1750930252416,-153.0,0.0002011,2]
[367782963,1750930252426,-153.0,0.0002011,2]
[367782965,1750930252435,-159.73436254,0.00020119,2]
[367782967,1750930252444,-2000.0,0.0002012,2]
[367782969,1750930252454,-1004.79287362,0.00020131,2]
[367782971,1750930252463,-171.820901,0.00020187,2]
[367782973,1750930252473,-460.0,0.00020244,2]
[367782975,1750930252482,-460.0,0.00020244,2]
[367782977,1750930252492,-1968.24,0.00020244,2]
[367782979,1750930252501,-849.86,0.00020244,2]
[367782981,1750930252512,-173.498796,0.00020244,2]
[367782983,1750930252521,-151.0,0.00020244,2]
[367782985,1750930252530,-585.75,0.00020244,2]
[367782987,1750930252540,-657.24,0.00020244,2]
[367782989,1750930252549,-573.2,0.00020244,2]
[367782991,1750930252559,-176.214753,0.00020244,2]
[367782993,1750930252568,-176.214753,0.00020244,2]